fUSD/lending_fUSD_20250620
["ID","MTS","AMOUNT","RATE_DAILY","PERIOD"]
[366707999,1750415594842,-7770.54,0.00027945,4]
[366708000,1750415594853,-490.0,0.00027945,4]
[366708001,1750415594863,-490.0,0.00027945,4]
[366708002,1750415594872,-713.18,0.00027945,4]
[366708003,1750415594882,-490.0,0.00027945,4]
[366708004,1750415594892,-490.0,0.00027945,4]
[366708005,1750415594902,-565.57,0.00027945,4]
[366708006,1750415594911,-1078.51,0.00027945,4]
[366708007,1750415594921,-490.0,0.00027945,4]
[366708008,1750415594930,-490.0,0.00027945,4]
[366708009,1750415594940,-490.0,0.00027945,4]
[366708010,1750415594950,-511.43,0.00027945,4]
[366708011,1750415594959,-490.0,0.00027955,4]
[366708012,1750415594969,-540.0,0.00027955,4]
[366708013,1750415594978,-490.0,0.00027955,4]
[366708014,1750415594987,-490.0,0.00027955,4]
[366708015,1750415594997,-490.0,0.00027955,4]
[366708016,1750415595006,-256.11726041,0.00027955,4]
[366708017,1750415595015,-490.0,0.00027955,4]
[366708018,1750415595025,-490.0,0.00027955,4]
[366708019,1750415595034,-490.0,0.00027955,4]
[366708020,1750415595044,-490.0,0.00027955,4]
[366708021,1750415595053,-490.0,0.00027955,4]
[366708022,1750415595063,-709.67,0.00027955,4]
[366708023,1750415595072,-490.0,0.00027955,4]
[366708024,1750415595081,-490.0,0.00027955,4]
[366708025,1750415595091,-716.73,0.00027955,4]
[366708026,1750415595100,-490.0,0.00027955,4]
[366708027,1750415595110,-879.88,0.00027955,4]
[366708028,1750415595119,-490.0,0.00027955,4]
[366708029,1750415595130,-490.0,0.00027955,4]
[366708030,1750415595139,-490.0,0.00027955,4]
[366708031,1750415595149,-490.0,0.00027955,4]
[366708032,1750415595159,-490.0,0.00027955,4]
[366708033,1750415595168,-490.0,0.00027955,4]
[366708034,1750415595178,-490.0,0.00027955,4]
[366708035,1750415595191,-490.0,0.00027955,4]
[366708036,1750415595200,-490.0,0.00027955,4]
[366708037,1750415595209,-490.0,0.00027955,4]
[366708038,1750415595218,-490.0,0.00027955,4]
[366708039,1750415595228,-490.0,0.00027955,4]
[366708040,1750415595237,-1218.9,0.00027955,4]
[366708041,1750415595246,-901.28,0.00027955,4]
[366708042,1750415595256,-507.19,0.00027955,4]
[366708043,1750415595266,-490.0,0.00027955,4]
[366708044,1750415595275,-584.6,0.00027955,4]
[366708045,1750415595284,-490.0,0.00027955,4]
[366708046,1750415595295,-490.0,0.00027955,4]
[366708047,1750415595305,-490.0,0.00027955,4]
[366708048,1750415595314,-490.0,0.00027955,4]
[366708049,1750415595324,-490.0,0.00027955,4]
[366708050,1750415595334,-490.0,0.00027955,4]
[366708051,1750415595344,-338.13768768,0.00027955,4]
[366708052,1750415595353,-490.0,0.00027955,4]
[366708053,1750415595363,-490.0,0.00027955,4]
[366708054,1750415595372,-624.83,0.00027955,4]
[366708055,1750415595381,-490.0,0.00027955,4]
[366708056,1750415595391,-490.0,0.00027955,4]
[366708057,1750415595404,-947.23,0.00027955,4]
[366708058,1750415595414,-497.34,0.00027955,4]
[366708059,1750415595424,-1160.0,0.00027955,4]
[366708060,1750415595433,-682.25,0.00027955,4]
[366708061,1750415595442,-676.69,0.00027955,4]
[366708062,1750415595451,-798.57,0.00027955,4]
[366708063,1750415595461,-490.0,0.00027955,4]
[366708064,1750415595471,-490.0,0.00027955,4]
[366708065,1750415595480,-490.0,0.00027955,4]
[366708066,1750415595491,-490.0,0.00027955,4]
[366708067,1750415595501,-490.0,0.00027955,4]
[366708068,1750415595511,-494.88307489,0.00027955,4]
[366708069,1750415595521,-490.0,0.00027955,4]
[366708070,1750415595531,-994.26,0.00027955,4]
[366708071,1750415595543,-490.0,0.00027955,4]
[366708072,1750415595552,-490.0,0.00027955,4]
[366708073,1750415595563,-504.86,0.00027955,4]
[366708074,1750415595572,-1262.16,0.00027955,4]
[366708075,1750415595581,-490.0,0.00027955,4]
[366708076,1750415595591,-526.89,0.00027955,4]
[366708077,1750415595601,-490.0,0.00027955,4]
[366708078,1750415595610,-490.0,0.00027955,4]
[366708079,1750415595619,-562.08,0.00027955,4]
[366708080,1750415595629,-545.75,0.00027955,4]
[366708081,1750415595643,-1061.69,0.00027955,4]
[366708082,1750415595652,-490.0,0.00027955,4]
[366708083,1750415595662,-809.96,0.00027955,4]
[366708084,1750415595672,-631.0,0.00027955,4]
[366708085,1750415595681,-1378.13,0.00027955,4]
[366708086,1750415595691,-490.0,0.00027955,4]
[366708087,1750415595700,-490.0,0.00027955,4]
[366708088,1750415595710,-490.0,0.00027955,4]
[366708089,1750415595719,-559.26,0.00027955,4]
[366708090,1750415595729,-490.0,0.00027955,4]
[366708091,1750415595739,-707.03,0.00027955,4]
[366708092,1750415595749,-490.0,0.00027955,4]
[366708093,1750415595759,-2021.51,0.00027955,4]
[366708094,1750415595768,-547.36,0.00027955,4]
[366708096,1750415595779,-1831.85,0.00027955,4]
[366708097,1750415595789,-606.95,0.00027955,4]
[366708098,1750415595798,-1476.65,0.00027955,4]
[366708100,1750415595808,-490.0,0.00027955,4]
[366708101,1750415595818,-548.58312649,0.00027955,4]
[366708102,1750415595828,-490.0,0.00027955,4]
[366708103,1750415595839,-490.0,0.00027955,4]
[366708104,1750415595848,-1005.12,0.00027955,4]
[366708105,1750415595858,-1516.56,0.00027955,4]
[366708106,1750415595867,-600.95,0.00027955,4]
[366708107,1750415595878,-490.0,0.00027955,4]
[366708108,1750415595887,-490.0,0.00027955,4]
[366708109,1750415595896,-490.0,0.00027955,4]
[366708110,1750415595905,-490.0,0.00027955,4]
[366708111,1750415595915,-302.3,0.00027955,4]
[366708112,1750415595925,-1853.92,0.00027955,4]
[366708113,1750415595934,-490.0,0.00027955,4]
[366708114,1750415595943,-490.0,0.00027955,4]
[366708115,1750415595952,-1207.48,0.00027955,4]
[366708116,1750415595962,-970.42,0.00027955,4]
[366708117,1750415595971,-490.0,0.00027955,4]
[366708118,1750415595980,-1085.47,0.00027955,4]
[366708119,1750415595989,-555.86,0.00027955,4]
[366708120,1750415595998,-1321.89,0.00027955,4]
[366708121,1750415596008,-907.27,0.00027955,4]
[366708122,1750415596018,-490.0,0.00027955,4]
[366708123,1750415596027,-490.0,0.00027955,4]
[366708124,1750415596037,-490.0,0.00027955,4]
[366708125,1750415596046,-490.0,0.00027955,4]
[366708126,1750415596056,-490.0,0.00027955,4]
[366708127,1750415596066,-1835.37,0.00027955,4]
[366708128,1750415596076,-490.0,0.00027955,4]
[366708129,1750415596086,-490.0,0.00027955,4]
[366708130,1750415596096,-556.59,0.00027955,4]
[366708131,1750415596106,-1052.99,0.00027955,4]
[366708132,1750415596115,-490.0,0.00027955,4]
[366708133,1750415596125,-567.01,0.00027955,4]
[366708134,1750415596135,-492.0,0.00027955,4]
[366708135,1750415596144,-819.36,0.00027955,4]
[366708136,1750415596154,-2175.07,0.00027955,4]
[366708137,1750415596164,-490.0,0.00027955,4]
[366708138,1750415596174,-789.56,0.00027955,4]
[366708139,1750415596186,-1474.82,0.00027955,4]
[366708140,1750415596199,-490.0,0.00027955,4]
[366708141,1750415596209,-1752.57,0.00027955,4]
[366708142,1750415596218,-490.0,0.00027955,4]
[366708143,1750415596228,-490.0,0.00027955,4]
[366708144,1750415596238,-490.0,0.00027955,4]
[366708145,1750415596248,-2581.66,0.00027955,4]
[366708146,1750415596257,-490.0,0.00027955,4]
[366708147,1750415596267,-1705.52,0.00027955,4]
[366708148,1750415596277,-490.0,0.00027955,4]
[366708149,1750415596288,-1306.7,0.00027955,4]
[366708150,1750415596297,-490.0,0.00027955,4]
[366708151,1750415596307,-525.6,0.00027955,4]
[366708152,1750415596317,-490.0,0.00027955,4]
[366708153,1750415596327,-737.94,0.00027955,4]
[366708154,1750415596336,-490.0,0.00027955,4]
[366708155,1750415596347,-490.0,0.00027955,4]
[366708156,1750415596357,-490.0,0.00027955,4]
[366708157,1750415596367,-616.11,0.00027955,4]
[366708158,1750415596377,-749.2,0.00027955,4]
[366708159,1750415596387,-1450.49,0.00027955,4]
[366708160,1750415596396,-733.41,0.00027955,4]
[366708161,1750415596405,-490.0,0.00027955,4]
[366708162,1750415596415,-2517.34,0.00027955,4]
[366708163,1750415596424,-490.0,0.00027955,4]
[366708164,1750415596434,-490.0,0.00027955,4]
[366708165,1750415596443,-647.98,0.00027955,4]
[366708166,1750415596454,-1420.61,0.00027955,4]
[366708167,1750415596464,-666.21,0.00027955,4]
[366708168,1750415596474,-490.0,0.00027955,4]
[366708169,1750415596483,-798.3,0.00027955,4]
[366708170,1750415596493,-490.0,0.00027955,4]
[366708171,1750415596503,-490.0,0.00027955,4]
[366708172,1750415596512,-490.0,0.00027955,4]
[366708173,1750415596521,-629.3,0.00027955,4]
[366708174,1750415596531,-744.22,0.00027955,4]
[366708175,1750415596540,-490.0,0.00027955,4]
[366708176,1750415596550,-824.71,0.00027955,4]
[366708177,1750415596560,-1579.86,0.00027955,4]
[366708178,1750415596570,-490.0,0.00027955,4]
[366708179,1750415596579,-490.0,0.00027955,4]
[366708180,1750415596588,-1499.44,0.00027955,4]
[366708181,1750415596600,-509.05,0.00027955,4]
[366708182,1750415596611,-2238.49,0.00027955,4]
[366708183,1750415596622,-490.0,0.00027955,4]
[366708184,1750415596631,-597.0,0.00027955,4]
[366708185,1750415596642,-490.0,0.00027955,4]
[366708186,1750415596654,-933.51,0.00027955,4]
[366708187,1750415596664,-490.0,0.00027955,4]
[366708188,1750415596673,-822.58,0.00027955,4]
[366708189,1750415596683,-838.77,0.00027955,4]
[366708190,1750415596692,-504.68,0.00027955,4]
[366708191,1750415596701,-507.81,0.00027955,4]
[366708192,1750415596711,-490.0,0.00027955,4]
[366708193,1750415596720,-490.0,0.00027955,4]
[366708194,1750415596730,-490.0,0.00027955,4]
[366708195,1750415596739,-572.5,0.00027955,4]
[366708196,1750415596749,-490.0,0.00027955,4]
[366708197,1750415596759,-490.0,0.00027955,4]
[366708198,1750415596768,-1129.55,0.00027955,4]
[366708199,1750415596778,-858.91,0.00027955,4]
[366708200,1750415596787,-490.0,0.00027955,4]
[366708201,1750415596797,-800.69,0.00027955,4]
[366708202,1750415596808,-1036.77,0.00027955,4]
[366708203,1750415596819,-490.0,0.00027955,4]
[366708204,1750415596830,-1310.63,0.00027955,4]
[366708205,1750415596840,-490.0,0.00027955,4]
[366708206,1750415596849,-867.83,0.00027955,4]
[366708207,1750415596859,-545.19,0.00027955,4]
[366708208,1750415596868,-1236.78,0.00027955,4]
[366708209,1750415596878,-191.98959225,0.00027955,4]
[366708210,1750415596888,-490.0,0.00027955,4]
[366708211,1750415596898,-490.0,0.00027955,4]
[366708212,1750415596908,-509.27,0.00027955,4]
[366708213,1750415596918,-490.0,0.00027955,4]
[366708214,1750415596930,-490.0,0.00027955,4]
[366708215,1750415596940,-1804.01,0.00027955,4]
[366708216,1750415596952,-490.0,0.00027955,4]
[366708217,1750415596961,-490.0,0.00027955,4]
[366708218,1750415596971,-1718.47,0.00027955,4]
[366708219,1750415596981,-490.0,0.00027955,4]
[366708220,1750415596991,-528.49,0.00027955,4]
[366708221,1750415597001,-490.0,0.00027955,4]
[366708222,1750415597010,-808.69,0.00027955,4]
[366708223,1750415597019,-490.0,0.00027955,4]
[366708224,1750415597030,-490.0,0.00027955,4]
[366708225,1750415597039,-490.0,0.00027955,4]
[366708226,1750415597049,-726.13,0.00027955,4]
[366708227,1750415597060,-490.0,0.00027955,4]
[366708228,1750415597070,-490.0,0.00027956,4]
[366708229,1750415597079,-490.0,0.00027956,4]
[366708230,1750415597090,-924.0,0.00027956,4]
[366708231,1750415597099,-490.0,0.00027956,4]
[366708232,1750415597109,-490.0,0.00027956,4]
[366708233,1750415597119,-490.0,0.00027956,4]
[366708234,1750415597128,-490.0,0.00027956,4]
[366708235,1750415597138,-490.0,0.00027956,4]
[366708236,1750415597147,-555.64,0.00027956,4]
[366708237,1750415597156,-490.0,0.00027956,4]
[366708238,1750415597166,-560.67,0.00027956,4]
[366708239,1750415597176,-714.6,0.00027956,4]
[366708240,1750415597186,-490.0,0.00027956,4]
[366708241,1750415597197,-490.0,0.00027956,4]
[366708242,1750415597207,-584.97,0.00027956,4]
[366708243,1750415597217,-490.0,0.00027956,4]
[366708244,1750415597227,-528.72,0.00027956,4]
[366708245,1750415597236,-490.0,0.00027956,4]
[366708246,1750415597246,-490.0,0.00027956,4]
[366708247,1750415597256,-490.0,0.00027956,4]
[366708248,1750415597266,-490.0,0.00027956,4]
[366708249,1750415597275,-490.0,0.00027956,4]
[366708250,1750415597285,-490.0,0.00027956,4]
[366708251,1750415597295,-595.37,0.00027956,4]
[366708252,1750415597304,-533.44,0.00027976,4]
[366708253,1750415597314,-164.13,0.00027988,2]
[366708254,1750415597324,-500.0,0.00028,120]
[366708255,1750415597334,-27492.91719361,0.00028,2]
[366708256,1750415597344,-11521.38,0.00028,2]
[366708257,1750415597353,-834.11677829,0.00028,10]
[366708258,1750415597362,-1642.82,0.00028,2]
[366708259,1750415597372,-1152.53,0.00028,2]
[366708260,1750415597381,-775.47665243,0.00028003,18]
[366708261,1750415597390,-192.81736398,0.00028052,120]
[366708262,1750415597400,-1048.42229328,0.00028075,2]
[366708263,1750415597409,-1048.42229328,0.00028075,2]
[366708264,1750415597419,-490.0,0.00028083,4]
[366708265,1750415597428,-162.380719,0.00028103,2]
[366708266,1750415597437,-211.0,0.0002811,2]
[366708267,1750415597447,-209.0,0.0002811,2]
[366708268,1750415597457,-775.47665243,0.00028176,18]
[366708269,1750415597467,-792.0,0.00028181,2]
[366708270,1750415597477,-500.0,0.00028181,2]
[366708271,1750415597487,-500.0,0.00028181,2]
[366708272,1750415597497,-500.0,0.00028181,2]
[366708273,1750415597506,-500.0,0.00028181,2]
[366708274,1750415597515,-500.0,0.00028181,2]
[366708275,1750415597525,-500.0,0.00028181,2]
[366708276,1750415597534,-500.0,0.00028181,2]
[366708277,1750415597550,-500.0,0.00028181,2]
[366708278,1750415597560,-500.0,0.00028181,2]
[366708279,1750415597569,-500.0,0.00028181,2]
[366708280,1750415597579,-500.0,0.00028181,2]
[366708281,1750415597589,-500.0,0.00028181,2]
[366708282,1750415597598,-500.0,0.00028181,2]
[366708283,1750415597607,-500.0,0.00028181,2]
[366708284,1750415597616,-500.0,0.00028181,2]
[366708285,1750415597625,-500.0,0.00028181,2]
[366708286,1750415597635,-500.0,0.00028181,2]
[366708287,1750415597644,-500.0,0.00028181,2]
[366708288,1750415597654,-500.0,0.00028181,2]
[366708289,1750415597664,-500.0,0.00028181,2]
[366708290,1750415597674,-500.0,0.00028181,2]
[366708291,1750415597684,-500.0,0.00028181,2]
[366708292,1750415597694,-500.0,0.00028181,2]
[366708293,1750415597703,-500.0,0.00028181,2]
[366708294,1750415597712,-500.0,0.00028181,2]
[366708295,1750415597722,-500.0,0.00028181,2]
[366708296,1750415597731,-500.0,0.00028181,2]
[366708297,1750415597741,-500.0,0.00028181,2]
[366708298,1750415597751,-500.0,0.00028181,2]
[366708299,1750415597760,-855.14,0.00028187,4]
[366708300,1750415597770,-490.0,0.00028187,4]
[366708301,1750415597779,-941.29,0.00028187,4]
[366708302,1750415597789,-151.0,0.00028189,2]
[366708303,1750415597799,-710.39,0.00028197,4]
[366708304,1750415597808,-2657.88,0.00028197,4]
[366708305,1750415597823,-678.91,0.00028197,4]
[366708306,1750415597833,-951.97,0.00028197,4]
[366708307,1750415597843,-934.95,0.00028197,4]
[366708308,1750415597853,-982.82,0.00028197,4]
[366708309,1750415597862,-490.0,0.00028197,4]
[366708310,1750415597873,-181.5748189,0.00028197,4]
[366708311,1750415597882,-1196.7,0.00028197,4]
[366708312,1750415597892,-905.13,0.00028197,4]
[366708313,1750415597901,-733.67,0.00028197,4]
[366708314,1750415597911,-623.14,0.00028197,4]
[366708315,1750415597922,-858.58,0.00028197,4]
[366708316,1750415597933,-4996.22,0.00028197,4]
[366708317,1750415597942,-1411.02,0.00028197,4]
[366708318,1750415597952,-490.0,0.00028197,4]
[366708319,1750415597961,-566.53,0.00028197,4]
[366708320,1750415597971,-673.04,0.00028197,4]
[366708321,1750415597981,-1000.0,0.00028197,4]
[366708322,1750415597990,-560.81,0.00028197,4]
[366708323,1750415598012,-5470.75,0.00028197,4]
[366708324,1750415598022,-490.0,0.00028197,4]
[366708325,1750415598032,-2781.24,0.00028197,4]
[366708326,1750415598043,-608.76,0.00028197,4]
[366708327,1750415598054,-622.46,0.00028197,4]
[366708328,1750415598064,-2671.47,0.00028197,4]
[366708329,1750415598074,-490.0,0.00028197,4]
[366708330,1750415598084,-807.14,0.00028197,4]
[366708331,1750415598093,-490.0,0.00028207,4]
[366708332,1750415598104,-490.0,0.00028207,4]
[366708333,1750415598114,-490.0,0.00028207,4]
[366708334,1750415598124,-490.0,0.00028207,4]
[366708335,1750415598134,-525.64,0.00028207,4]
[366708336,1750415598144,-490.0,0.00028207,4]
[366708337,1750415598155,-490.0,0.00028207,4]
[366708338,1750415598166,-490.0,0.00028207,4]
[366708339,1750415598177,-490.0,0.00028207,4]
[366708340,1750415598188,-824.86,0.00028207,4]
[366708341,1750415598198,-490.0,0.00028207,4]
[366708342,1750415598209,-490.0,0.00028207,4]
[366708343,1750415598220,-490.0,0.00028207,4]
[366708344,1750415598230,-490.0,0.00028207,4]
[366708345,1750415598240,-1042.35,0.00028207,4]
[366708346,1750415598251,-159.469271,0.00028207,4]
[366708347,1750415598261,-2063.423116,0.00028207,4]
[366708348,1750415598271,-1129.83,0.00028207,4]
[366708349,1750415598282,-490.0,0.00028207,4]
[366708350,1750415598292,-490.0,0.00028207,4]
[366708351,1750415598304,-2980.629608,0.00028207,4]
[366708352,1750415598313,-1443.11,0.00028207,4]
[366708353,1750415598323,-6813.75,0.00028207,4]
[366708354,1750415598333,-490.0,0.00028207,4]
[366708355,1750415598344,-977.73,0.00028207,4]
[366708356,1750415598353,-1060.66,0.00028207,4]
[366708357,1750415598364,-1271.04,0.00028207,4]
[366708358,1750415598374,-490.0,0.00028207,4]
[366708359,1750415598383,-1687.17,0.00028207,4]
[366708360,1750415598393,-490.0,0.00028207,4]
[366708361,1750415598403,-1425.44,0.00028207,4]
[366708362,1750415598413,-351.72703386,0.00028207,4]
[366708363,1750415598424,-1260.23,0.00028207,4]
[366708364,1750415598434,-535.62,0.00028207,4]
[366708365,1750415598444,-600.47,0.00028207,4]
[366708366,1750415598455,-490.0,0.00028207,4]
[366708367,1750415598464,-7447.5,0.00028207,4]
[366708368,1750415598474,-490.0,0.00028207,4]
[366708369,1750415598484,-490.0,0.00028207,4]
[366708370,1750415598494,-998.98,0.00028207,4]
[366708371,1750415598504,-490.0,0.00028207,4]
[366708372,1750415598515,-1377.1,0.00028207,4]
[366708373,1750415598525,-4861.36,0.00028207,4]
[366708374,1750415598535,-1977.29,0.00028207,4]
[366708375,1750415598546,-446.4802295,0.00028207,4]
[366708376,1750415598555,-1276.4,0.00028207,4]
[366708377,1750415598566,-2235.26,0.00028207,4]
[366708378,1750415598575,-2488.9,0.00028207,4]
[366708379,1750415598586,-1190.82,0.00028207,4]
[366708380,1750415598596,-712.91,0.00028207,4]
[366708381,1750415598607,-1879.2,0.00028207,4]
[366708382,1750415598617,-490.0,0.00028207,4]
[366708383,1750415598628,-3348.43,0.00028207,4]
[366708384,1750415598639,-2145.92,0.00028207,4]
[366708385,1750415598649,-3119.56,0.00028207,4]
[366708386,1750415598660,-3273.4,0.00028207,4]
[366708387,1750415598670,-490.0,0.00028209,4]
[366708388,1750415598681,-490.0,0.00028209,4]
[366708389,1750415598692,-490.0,0.00028209,4]
[366708390,1750415598703,-490.0,0.00028209,4]
[366708391,1750415598714,-490.0,0.00028209,4]
[366708392,1750415598725,-1480.37,0.00028209,4]
[366708393,1750415598735,-491.16686081,0.00028209,4]
[366708394,1750415598746,-1643.1,0.00028209,4]
[366708395,1750415598756,-565.51,0.00028209,4]
[366708396,1750415598767,-492.45,0.00028209,4]
[366708397,1750415598777,-2032.33,0.00028209,4]
[366708398,1750415598787,-880.4,0.00028209,4]
[366708399,1750415598797,-490.0,0.00028209,4]
[366708400,1750415598807,-1088.85,0.00028209,4]
[366708401,1750415598817,-848.08,0.00028209,4]
[366708402,1750415598827,-912.78,0.00028209,4]
[366708403,1750415598837,-1634.09,0.00028209,4]
[366708404,1750415598847,-1838.84,0.00028209,4]
[366708405,1750415598857,-895.29,0.00028209,4]
[366708406,1750415598867,-818.8,0.00028209,4]
[366708407,1750415598878,-669.38,0.00028209,4]
[366708408,1750415598889,-490.0,0.00028209,4]
[366708409,1750415598900,-1627.01,0.00028209,4]
[366708410,1750415598912,-490.0,0.00028209,4]
[366708411,1750415598922,-490.0,0.00028209,4]
[366708412,1750415598933,-490.0,0.00028209,4]
[366708413,1750415598943,-1078.58,0.00028209,4]
[366708414,1750415598954,-994.67,0.00028209,4]
[366708415,1750415598964,-771.65,0.00028209,4]
[366708416,1750415598974,-490.0,0.00028209,4]
[366708417,1750415598985,-694.41,0.00028209,4]
[366708418,1750415598995,-679.99,0.00028209,4]
[366708419,1750415599008,-490.0,0.00028209,4]
[366708420,1750415599020,-2362.55,0.00028209,4]
[366708421,1750415599031,-490.0,0.00028209,4]
[366708422,1750415599042,-490.0,0.00028209,4]
[366708423,1750415599054,-490.0,0.00028209,4]
[366708424,1750415599066,-592.8,0.00028209,4]
[366708425,1750415599077,-490.0,0.00028209,4]
[366708426,1750415599087,-497.17510801,0.00028209,4]
[366708427,1750415599098,-542.79,0.00028209,4]
[366708428,1750415599108,-1385.22,0.00028209,4]
[366708429,1750415599119,-1591.3,0.00028209,4]
[366708430,1750415599130,-490.0,0.00028209,4]
[366708431,1750415599140,-1073.69,0.00028209,4]
[366708432,1750415599151,-490.0,0.00028209,4]
[366708433,1750415599162,-616.36,0.00028209,4]
[366708434,1750415599172,-490.0,0.00028209,4]
[366708435,1750415599184,-490.0,0.00028209,4]
[366708436,1750415599200,-490.0,0.00028209,4]
[366708437,1750415599211,-583.29,0.00028209,4]
[366708438,1750415599222,-1175.68,0.00028209,4]
[366708439,1750415599233,-1312.24,0.00028209,4]
[366708440,1750415599244,-1363.77,0.00028209,4]
[366708441,1750415599258,-490.0,0.00028209,4]
[366708442,1750415599270,-770.8,0.00028209,4]
[366708443,1750415599282,-997.01,0.00028209,4]
[366708444,1750415599293,-989.39,0.00028209,4]
[366708445,1750415599304,-567.86,0.00028209,4]
[366708446,1750415599317,-1096.04,0.00028209,4]
[366708447,1750415599329,-1520.45,0.00028209,4]
[366708448,1750415599340,-497.77796571,0.00028209,4]
[366708449,1750415599351,-805.39,0.00028209,4]
[366708450,1750415599364,-490.0,0.00028209,4]
[366708451,1750415599375,-490.0,0.00028209,4]
[366708452,1750415599387,-1428.58,0.00028209,4]
[366708453,1750415599397,-596.59,0.00028209,4]
[366708454,1750415599409,-505.3377946,0.00028209,4]
[366708455,1750415599419,-5382.53,0.00028209,4]
[366708456,1750415599432,-490.0,0.00028209,4]
[366708457,1750415599442,-703.96,0.00028209,4]
[366708458,1750415599453,-1669.54,0.00028209,4]
[366708459,1750415599463,-1601.56,0.00028209,4]
[366708460,1750415599473,-2721.61,0.00028209,4]
[366708461,1750415599485,-490.0,0.00028209,4]
[366708462,1750415599495,-741.54,0.00028209,4]
[366708463,1750415599506,-669.76,0.00028209,4]
[366708464,1750415599516,-1225.01,0.00028209,4]
[366708465,1750415599527,-2422.36,0.00028209,4]
[366708466,1750415599539,-1005.68,0.00028209,4]
[366708467,1750415599551,-490.0,0.00028209,4]
[366708468,1750415599562,-2138.59,0.00028209,4]
[366708469,1750415599573,-490.0,0.00028209,4]
[366708470,1750415599583,-998.16,0.00028209,4]
[366708471,1750415599594,-4396.87,0.00028209,4]
[366708472,1750415599604,-933.76,0.00028209,4]
[366708473,1750415599615,-897.22,0.00028209,4]
[366708474,1750415599626,-1489.74,0.00028209,4]
[366708475,1750415599636,-2632.99,0.00028209,4]
[366708476,1750415599648,-490.0,0.00028209,4]
[366708477,1750415599658,-2115.45,0.00028209,4]
[366708478,1750415599669,-969.59,0.00028209,4]
[366708479,1750415599679,-1788.12,0.00028209,4]
[366708480,1750415599691,-587.84,0.00028209,4]
[366708481,1750415599702,-490.0,0.00028209,4]
[366708482,1750415599712,-747.47,0.00028209,4]
[366708483,1750415599723,-629.05,0.00028209,4]
[366708484,1750415599735,-1158.39,0.00028209,4]
[366708485,1750415599746,-4900.18,0.00028209,4]
[366708486,1750415599757,-490.0,0.00028209,4]
[366708487,1750415599768,-1552.28,0.00028209,4]
[366708488,1750415599779,-540.28,0.00028209,4]
[366708489,1750415599791,-1986.49,0.00028209,4]
[366708490,1750415599801,-2142.56,0.00028209,4]
[366708491,1750415599814,-675.46,0.00028209,4]
[366708492,1750415599825,-2131.24,0.00028209,4]
[366708493,1750415599835,-1335.47,0.00028209,4]
[366708494,1750415599845,-894.67,0.00028209,4]
[366708495,1750415599856,-3901.98,0.00028209,4]
[366708496,1750415599866,-694.78,0.00028209,4]
[366708497,1750415599877,-748.02,0.00028209,4]
[366708498,1750415599889,-2210.45,0.00028209,4]
[366708499,1750415599899,-1823.65,0.00028209,4]
[366708500,1750415599911,-1839.21,0.00028209,4]